fUSD/lending_fUSD_20240904
["ID","MTS","AMOUNT","RATE_DAILY","PERIOD"]
[337117993,1725442232301,-151.38,0.00014371,2]
[337117995,1725442232311,-151.38,0.00014371,2]
[337117997,1725442232321,-158.90875672,0.00014373,2]
[337117999,1725442232330,-500.0,0.00014373,2]
[337118001,1725442232341,-500.0,0.00014373,2]
[337118003,1725442232350,-501.49882417,0.00014379,2]
[337118005,1725442232360,-500.0,0.00014379,2]
[337118007,1725442232369,-556.06335157,0.00014379,2]
[337118008,1725442232379,-500.0,0.00014379,2]
[337118010,1725442232389,-500.0,0.00014379,2]
[337118012,1725442232398,-590.84917513,0.00014379,2]
[337118014,1725442232408,-69571.87287106,0.0001438,2]
[337118016,1725442232418,-966785.01166009,0.0001438,2]
[337118018,1725442232430,-377.277724,0.0001438,2]
[337118024,1725442237977,-364.16166724,0.0001438,2]
[337118025,1725442237986,-28686.90924801,0.0001438,2]
[337118026,1725442238103,-848.45861086,0.0001438,2]
[337118027,1725442238279,-501.41469042,0.0001438,2]
[337118194,1725442240020,-641.30813083,0.00014084,2]
[337118597,1725442244272,-379.5085047,0.00014084,2]
[337118599,1725442244282,-29734.4488863,0.0001438,2]
[337119909,1725442259623,216.46,0.00011627,2]
[337119910,1725442329674,162.06,0.00010959,2]
[337119911,1725442767548,237.01,0.00011506,2]
[337119912,1725442826130,250.0,0.00013385,2]
[337119913,1725442849223,159.89,0.00013385,2]
[337119914,1725443111613,157.6,0.00013374,2]
[337119919,1725443222127,246.4,0.00013395,2]
[337119926,1725443285765,225.15,0.00011502,2]
[337119927,1725443319318,390.4,0.00013391,2]
[337119928,1725443391282,159.89,0.00013372,2]
[337119931,1725443432172,-240.11,0.00013517,2]
[337119932,1725443432191,-525.18022052,0.00013546,2]
[337119933,1725443432202,-84.41977948,0.00013546,2]
[337119934,1725443432211,-175.7,0.00013699,2]
[337119935,1725443432220,-160.58,0.00013699,2]
[337119936,1725443432229,-133.34599039,0.00013699,2]
[337119937,1725443432240,-366.65400961,0.00013699,2]
[337119938,1725443432249,-81.47557793,0.00013766,2]
[337119939,1725443432264,-143.67442207,0.00013766,2]
[337119940,1725443432273,-159.77125603,0.00014092,2]
[337119941,1725443432317,-917.09470958,0.00014092,2]
[337119942,1725443432325,-201.6933,0.0001414,2]
[337119943,1725443432334,-421.15547501,0.00014184,2]
[337119944,1725443432343,-201.0,0.0001424,2]
[337119945,1725443432353,-210.0,0.0001424,2]
[337119946,1725443432362,-619.39,0.00014271,2]
[337119947,1725443432371,-329.66651541,0.00014271,2]
[337119948,1725443432382,-178.29468459,0.00014271,2]
[337119949,1725443432392,-1125.57964588,0.00014273,2]
[337119950,1725443432401,-196.92378033,0.00014288,2]
[337119952,1725443435802,250.0,0.00013454,2]
[337119955,1725443438237,-103.07621967,0.00014288,2]
[337119956,1725443438246,-187.22879533,0.00014289,2]
[337119957,1725443438264,-5.48636587,0.00014289,2]
[337119958,1725443438274,-150.13794916,0.00014289,2]
[337119959,1725443438283,-383.79,0.00014289,2]
[337119960,1725443438292,-258.6,0.000143,2]
[337119961,1725443438301,-311.7518075,0.000143,2]
[337119962,1725443438372,-532.0481925,0.000143,2]
[337119963,1725443438381,-158.433803,0.00014333,2]
[337119964,1725443438391,-158.433803,0.00014333,2]
[337119965,1725443438401,-158.433803,0.00014334,2]
[337119966,1725443438413,-158.433803,0.00014334,2]
[337119967,1725443438423,-158.433803,0.00014334,2]
[337119968,1725443438438,-158.433803,0.00014334,2]
[337119969,1725443438448,-158.433803,0.00014334,2]
[337119970,1725443438458,-158.433803,0.00014334,2]
[337119971,1725443438468,-158.433803,0.00014334,2]
[337119972,1725443438477,-158.433803,0.00014334,2]
[337119973,1725443438487,-158.433803,0.00014334,2]
[337119974,1725443438499,-158.433803,0.00014335,2]
[337119975,1725443438508,-150.33329601,0.00014335,2]
[337119982,1725443440242,-8.10050699,0.00014335,2]
[337119983,1725443440255,-158.433803,0.00014337,2]
[337119984,1725443440264,-158.433803,0.00014338,2]
[337119985,1725443440274,-1125.5796458,0.00014343,2]
[337119986,1725443440283,-201.0,0.0001437,2]
[337119987,1725443440293,-210.0,0.0001437,2]
[337119988,1725443440303,-5870.84009495,0.0001437,2]
[337119989,1725443440312,-151.39,0.0001437,2]
[337119990,1725443440325,-232.31657501,0.0001437,2]
[337119991,1725443440336,-14901.15480749,0.00014371,2]
[337120252,1725443446330,-329.5803267,0.00014371,2]
[337120261,1725443469972,11506.0,0.000102,5]
[337120262,1725443470226,11506.0,0.000101,3]
[337120263,1725443470516,16323.0,0.0001,2]
[337120264,1725443525628,250.0,0.0001347,2]
[337120267,1725443597628,150.4,0.00013442,2]
[337120268,1725443669892,402.04,0.00013446,2]
[337120269,1725443688660,226.75,0.0001344,2]
[337120270,1725443708943,1852.42,0.00013446,2]
[337120271,1725443722908,530.06,0.00013428,2]
[337120272,1725443734491,550.0,0.00011,2]
[337120273,1725443735603,600.0,0.00013,2]
[337120274,1725443736522,215.4,0.00013413,2]
[337120275,1725443858933,237.56,0.00011433,2]
[337120276,1725443874518,153.10437496,0.00013,2]
[337120277,1725443901013,687.68,0.0001334,2]
[337120278,1725443971324,941.9,0.00013321,2]
[337120279,1725443971561,941.9,0.00013325,2]
[337120280,1725443971799,941.9,0.00013328,2]
[337120281,1725443972018,941.9,0.00013332,2]
[337120282,1725443972234,941.9,0.00013335,2]
[337120283,1725443972280,250.0,0.00013321,2]
[337120284,1725443972456,941.9,0.00013339,2]
[337120285,1725443972861,941.9,0.00013342,2]
[337120286,1725443973086,941.9,0.00013346,2]
[337120287,1725443973298,941.9,0.00013349,2]
[337120288,1725443973541,941.9,0.00013353,2]
[337120289,1725443973756,941.9,0.00013356,2]
[337120290,1725443973971,941.9,0.0001336,2]
[337120291,1725443974200,941.9,0.00013364,2]
[337120292,1725443974411,941.9,0.00013367,2]
[337120293,1725443974611,941.9,0.00013371,2]
[337120294,1725443974806,941.9,0.00013374,2]
[337120295,1725443975237,12.57265666,0.00013378,2]
[337120296,1725443975265,929.32734334,0.00013378,2]
[337120297,1725443975415,941.9,0.00013381,2]
[337120298,1725443975837,941.9,0.00013385,2]
[337120299,1725443976081,941.9,0.00013388,2]
[337120300,1725444008823,323.4,0.00013305,2]
[337120301,1725444059026,200.0,0.00013314,2]
[337120302,1725444189687,250.0,0.00013327,2]
[337120303,1725444249566,272.08,0.00013334,2]
[337120304,1725444270407,265.03,0.00013335,2]
[337120305,1725444315372,208.53654743,0.00012921,2]
[337120311,1725444388442,225.68,0.00011375,2]
[337120312,1725444399030,209.72,0.00010959,2]
[337120313,1725444411587,449.85,0.00013295,2]
[337120318,1725444496781,250.0,0.00013292,2]
[337120319,1725444565418,200.0,0.00013307,2]
[337120328,1725444632325,-5000.0,0.00013546,2]
[337120329,1725444632334,-300.0,0.0001357,2]
[337120330,1725444632344,-500.0,0.00013571,2]
[337120331,1725444632353,-500.0,0.00013571,2]
[337120332,1725444632362,-180.6,0.00013571,2]
[337120333,1725444632371,-30.298581,0.00013571,2]
[337120334,1725444632723,-324.2343219,0.00013571,2]
[337120335,1725444632734,-145.4670971,0.00013571,2]
[337120336,1725444632743,-201.93390282,0.00013571,2]
[337120337,1725444632758,-272.17609718,0.00013571,2]
[337120338,1725444632767,-225.68,0.00013639,2]
[337120339,1725444632775,-2751.0,0.00013699,2]
[337120340,1725444632784,-200.0,0.00013699,2]
[337120341,1725444632793,-500.0,0.00013699,2]
[337120342,1725444632803,-10000.0,0.00013749,2]
[337120343,1725444632818,-421.15547501,0.00014047,2]
[337120344,1725444632827,-260.5374,0.0001408,2]
[337120345,1725444632837,-1129.88866617,0.00014084,2]
[337120346,1725444632846,-150.0,0.00014179,2]
[337120347,1725444632856,-72369.22127152,0.0001418,2]
[337120348,1725444632868,-499.99,0.0001418,2]
[337120349,1725444632877,-1097.71614485,0.00014181,2]
[337120350,1725444632887,-35694.4368,0.00014186,2]
[337120351,1725444632897,-1285.713,0.00014186,2]
[337120352,1725444632906,-1623.88294,0.0001423,2]
[337120353,1725444632915,-1097.71614481,0.00014261,2]
[337120354,1725444632924,-225.26616443,0.0001427,2]
[337120355,1725444632933,-3770.3664,0.0001427,2]
[337120356,1725444632943,-10612.573,0.00014271,2]
[337120357,1725444632952,-1307.96,0.00014271,2]
[337120358,1725444632961,-735.43153645,0.00014272,2]
[337120359,1725444632970,-735.43153645,0.00014276,2]
[337120360,1725444632979,-735.43153645,0.0001428,2]
[337120361,1725444632988,-171.85912976,0.00014281,2]
[337120362,1725444632997,-331.8356478,0.00014281,2]
[337120363,1725444633007,-166.4933,0.00014281,2]
[337120364,1725444633016,-35091.6249,0.00014281,2]
[337120365,1725444633026,-1000.0,0.00014281,2]
[337120366,1725444633037,-1259.9875,0.00014281,2]
[337120367,1725444633047,-150.13794912,0.00014286,2]
[337120368,1725444633057,-151.56419077,0.00014287,2]
[337120369,1725444633071,-427.35,0.000143,2]
[337120370,1725444633081,-173.13,0.000143,2]
[337120371,1725444633090,-153.57,0.000143,2]
[337120372,1725444633100,-150.0,0.000143,2]
[337120373,1725444633110,-150.0,0.000143,2]
[337120374,1725444633119,-150.0,0.000143,2]
[337120375,1725444633129,-357.33,0.000143,2]
[337120376,1725444633138,-150.0,0.000143,2]
[337120377,1725444633148,-427.35,0.000143,2]
[337120378,1725444633157,-150.0,0.000143,2]
[337120379,1725444633167,-150.0,0.000143,2]
[337120380,1725444633176,-357.33,0.000143,2]
[337120381,1725444633185,-150.0,0.000143,2]
[337120382,1725444633194,-150.0,0.000143,2]
[337120383,1725444633204,-427.35,0.000143,2]
[337120384,1725444633213,-251.75,0.000143,2]
[337120385,1725444633223,-150.0,0.000143,2]
[337120386,1725444633232,-150.0,0.000143,2]
[337120387,1725444633241,-150.0,0.000143,2]
[337120388,1725444633250,-427.35,0.000143,2]
[337120389,1725444633260,-150.0,0.000143,2]
[337120390,1725444633269,-150.0,0.000143,2]
[337120391,1725444633278,-150.0,0.000143,2]
[337120392,1725444633287,-150.0,0.000143,2]
[337120393,1725444633296,-427.35,0.000143,2]
[337120394,1725444633306,-150.0,0.000143,2]
[337120395,1725444633315,-300.86,0.000143,2]
[337120396,1725444633324,-301.04,0.000143,2]
[337120397,1725444633333,-427.35,0.000143,2]
[337120398,1725444633342,-427.35,0.000143,2]
[337120399,1725444633351,-150.0,0.000143,2]
[337120400,1725444633360,-213.51,0.000143,2]
[337120401,1725444633370,-150.0,0.000143,2]
[337120402,1725444633378,-225.26616441,0.00014311,2]
[337120403,1725444633388,-1097.71614481,0.00014341,2]
[337120404,1725444633397,-225.26616441,0.00014353,2]
[337120405,1725444633406,-150.0,0.00014359,2]
[337120406,1725444633415,-151.24,0.0001436,2]
[337120407,1725444633424,-151.24,0.00014361,2]
[337120408,1725444633434,-4198.43697887,0.00014368,2]
[337120409,1725444633443,-2395.37671361,0.00014368,2]
[337120410,1725444633452,-500.0,0.00014369,2]
[337120411,1725444633461,-532.77504963,0.00014369,2]
[337120412,1725444633471,-211.15,0.0001437,2]
[337120413,1725444633480,-500.0,0.0001437,2]
[337120414,1725444633489,-500.0,0.0001437,2]
[337120415,1725444633498,-500.0,0.0001437,2]
[337120416,1725444633507,-500.0,0.0001437,2]
[337120417,1725444633516,-580.77,0.0001437,2]
[337120418,1725444633526,-431.26287175,0.0001437,2]
[337120419,1725444633535,-580.77,0.0001437,2]
[337120420,1725444633544,-500.0,0.0001437,2]
[337120421,1725444633553,-500.0,0.0001437,2]
[337120422,1725444633563,-1048.26,0.0001437,2]
[337120423,1725444633572,-1048.26,0.0001437,2]
[337120424,1725444633582,-680.35,0.0001437,2]
[337120425,1725444633592,-680.35,0.0001437,2]
[337120426,1725444633601,-500.0,0.0001437,2]
[337120427,1725444633611,-500.0,0.0001437,2]
[337120428,1725444633620,-500.0,0.0001437,2]
[337120429,1725444633629,-500.0,0.0001437,2]
[337120430,1725444633638,-500.0,0.0001437,2]
[337120431,1725444633648,-500.0,0.0001437,2]
[337120432,1725444633658,-720.97,0.0001437,2]
[337120433,1725444633667,-720.97,0.0001437,2]
[337120434,1725444633677,-395.65889626,0.0001437,2]
[337120435,1725444633686,-636.71,0.0001437,2]
[337120436,1725444633695,-636.71,0.0001437,2]
[337120437,1725444633705,-734.91,0.0001437,2]
[337120438,1725444633714,-734.91,0.0001437,2]
[337120439,1725444633723,-500.0,0.0001437,2]
[337120440,1725444633733,-500.0,0.0001437,2]
[337120441,1725444633742,-1601.03,0.0001437,2]
[337120442,1725444633751,-1601.03,0.0001437,2]
[337120443,1725444633760,-500.0,0.0001437,2]
[337120444,1725444633769,-500.0,0.0001437,2]
[337120445,1725444633778,-500.0,0.0001437,2]
[337120446,1725444633788,-500.0,0.0001437,2]
[337120447,1725444633797,-1454.97,0.0001437,2]
[337120448,1725444633807,-1454.97,0.0001437,2]
[337120449,1725444633824,-500.0,0.0001437,2]
[337120450,1725444633833,-500.0,0.0001437,2]
[337120451,1725444633843,-500.0,0.0001437,2]
[337120452,1725444633853,-500.0,0.0001437,2]
[337120453,1725444633863,-1316.21,0.0001437,2]
[337120454,1725444633872,-1316.21,0.0001437,2]
[337120455,1725444633881,-500.0,0.0001437,2]
[337120456,1725444633893,-500.0,0.0001437,2]
[337120457,1725444633902,-1169.72,0.0001437,2]
[337120458,1725444633911,-1169.72,0.0001437,2]
[337120459,1725444633921,-151.0,0.0001437,2]
[337120460,1725444633931,-500.0,0.0001437,2]
[337120461,1725444633940,-500.0,0.0001437,2]
[337120462,1725444633949,-1595.13,0.0001437,2]
[337120463,1725444633958,-1595.13,0.0001437,2]
[337120464,1725444633967,-500.0,0.0001437,2]
[337120465,1725444633977,-500.0,0.0001437,2]
[337120466,1725444633987,-151.0,0.0001437,2]
[337120467,1725444633996,-159.168712,0.0001437,2]
[337120468,1725444634005,-506.869866,0.0001437,2]
[337120469,1725444634023,-58.280134,0.0001437,2]
[337120470,1725444634032,-565.15,0.0001437,2]
[337120471,1725444634041,-345.81667378,0.0001437,2]
[337120472,1725444634053,-244.91332622,0.0001437,2]
[337120473,1725444634062,-590.73,0.0001437,2]
[337120474,1725444634071,-211.35667378,0.0001437,2]
[337120475,1725444634087,-288.64332622,0.0001437,2]
[337120476,1725444634097,-500.0,0.0001437,2]
[337120477,1725444634106,-1062.18,0.0001437,2]
[337120478,1725444634115,-1062.18,0.0001437,2]
[337120479,1725444634125,-1029.6,0.0001437,2]
[337120480,1725444634134,-500.0,0.0001437,2]
[337120481,1725444634143,-1029.6,0.0001437,2]
[337120482,1725444634152,-500.0,0.0001437,2]
[337120483,1725444634161,-801.41,0.0001437,2]
[337120484,1725444634170,-801.41,0.0001437,2]
[337120485,1725444634180,-500.0,0.0001437,2]
[337120486,1725444634189,-500.0,0.0001437,2]
[337120487,1725444634198,-1249.24,0.0001437,2]
[337120488,1725444634208,-1249.24,0.0001437,2]
[337120489,1725444634217,-151.0,0.0001437,2]
[337120490,1725444634226,-1222.7,0.0001437,2]
[337120491,1725444634236,-54.83360038,0.0001437,2]
[337120497,1725444638343,-500.0,0.00014369,2]
[337120499,1725444638352,-500.0,0.00014369,2]
[337120501,1725444638362,-602.96471149,0.0001437,2]
[337120503,1725444638518,-329.5347003,0.0001437,2]
[337120504,1725444638530,-235.36698783,0.0001437,2]
[337120505,1725444638539,-151.0,0.0001437,2]
[337120506,1725444638548,-648.75,0.0001437,2]
[337120507,1725444638558,-648.75,0.0001437,2]
[337120508,1725444638569,-500.0,0.0001437,2]
[337120509,1725444638587,-500.0,0.0001437,2]
[337120510,1725444638596,-1489.8,0.0001437,2]
[337120511,1725444638606,-1489.8,0.0001437,2]
[337120512,1725444638616,-501.2173775,0.0001437,2]
[337120513,1725444638625,-500.0,0.0001437,2]
[337120514,1725444638635,-169.07732823,0.0001437,2]
[337120515,1725444638647,-330.92267177,0.0001437,2]
[337120516,1725444638656,-199.244362,0.0001437,2]
[337120517,1725444638665,-199.244362,0.0001437,2]
[337120518,1725444638681,-500.0,0.0001437,2]
[337120519,1725444638690,-500.0,0.0001437,2]
[337120520,1725444638699,-1003.58,0.0001437,2]
[337120521,1725444638708,-1003.58,0.0001437,2]
[337120522,1725444638717,-538.67641438,0.0001437,2]
[337120523,1725444638726,-762.95,0.0001437,2]
[337120524,1725444638735,-762.95,0.0001437,2]
[337120525,1725444638744,-151.0,0.0001437,2]
[337120526,1725444638754,-98.5742619,0.0001437,2]
[337120527,1725444639038,-401.4257381,0.0001437,2]
[337120528,1725444639048,-500.0,0.0001437,2]
[337120529,1725444639057,-151.0,0.0001437,2]
[337120530,1725444639067,-151.0,0.0001437,2]
[337120531,1725444639076,-408.8970148,0.0001437,2]
[337120535,1725444640449,-652.86,0.00014369,2]
[337120536,1725444640459,-652.86,0.00014369,2]
[337120537,1725444640468,-91.1029852,0.0001437,2]
[337120538,1725444640478,-500.0,0.0001437,2]
[337120539,1725444640487,-500.0,0.0001437,2]
[337120540,1725444640497,-500.0,0.0001437,2]
[337120541,1725444640507,-151.0,0.0001437,2]
[337120542,1725444640516,-788.71,0.0001437,2]
[337120543,1725444640526,-788.71,0.0001437,2]
[337120544,1725444640535,-500.0,0.0001437,2]
[337120545,1725444640545,-500.0,0.0001437,2]
[337120546,1725444640554,-500.0,0.0001437,2]
[337120547,1725444640563,-500.0,0.0001437,2]
[337120548,1725444640573,-500.0,0.0001437,2]
[337120549,1725444640583,-500.0,0.0001437,2]
[337120550,1725444640593,-151.97333,0.0001437,2]
[337120551,1725444640603,-1097.76,0.0001437,2]
[337120552,1725444640613,-1097.76,0.0001437,2]
[337120553,1725444640622,-500.0,0.0001437,2]
[337120554,1725444640632,-500.0,0.0001437,2]
[337120555,1725444640642,-1007.88,0.0001437,2]
[337120556,1725444640651,-151.0,0.0001437,2]
[337120557,1725444640660,-1007.88,0.0001437,2]
[337120558,1725444640670,-606.43,0.0001437,2]
[337120559,1725444640679,-606.43,0.0001437,2]
[337120560,1725444640689,-151.0,0.0001437,2]
[337120561,1725444640698,-540.29,0.0001437,2]
[337120562,1725444640707,-540.29,0.0001437,2]
[337120563,1725444640717,-1243.06,0.0001437,2]
[337120564,1725444640726,-500.0,0.0001437,2]
[337120565,1725444640736,-1243.06,0.0001437,2]
[337120566,1725444640746,-500.0,0.0001437,2]
[337120567,1725444640755,-151.0,0.0001437,2]
[337120568,1725444640765,-500.0,0.0001437,2]
[337120569,1725444640775,-500.0,0.0001437,2]
[337120570,1725444640784,-500.0,0.0001437,2]
[337120571,1725444640793,-500.0,0.0001437,2]
[337120572,1725444640803,-500.0,0.0001437,2]
[337120573,1725444640814,-500.0,0.0001437,2]
[337120574,1725444640825,-500.0,0.0001437,2]
[337120575,1725444640834,-500.0,0.0001437,2]
[337120576,1725444640844,-201524.974986,0.0001437,2]
[337120577,1725444640854,-98839.3883275,0.0001437,2]
[337120578,1725444640864,-278.426383,0.0001437,2]
[337120579,1725444640874,-151.0,0.0001437,2]
[337120580,1725444640883,-278.426383,0.0001437,2]
[337120581,1725444640896,-151.0,0.0001437,2]
[337120582,1725444640906,-151.0,0.0001437,2]
[337120583,1725444640916,-542.83,0.0001437,2]
[337120584,1725444640925,-542.83,0.0001437,2]
[337120585,1725444640935,-151.0,0.0001437,2]
[337120586,1725444640944,-151.0,0.0001437,2]
[337120587,1725444640954,-151.0,0.0001437,2]
[337120588,1725444640963,-500.0,0.0001437,2]
[337120589,1725444640973,-500.0,0.0001437,2]
[337120590,1725444640982,-500.0,0.0001437,2]
[337120591,1725444640991,-500.0,0.0001437,2]
[337120593,1725444641001,-151.0,0.0001437,2]
[337120594,1725444641010,-151.0,0.0001437,2]
[337120596,1725444641019,-611.14,0.0001437,2]
[337120598,1725444641028,-611.14,0.0001437,2]
[337120600,1725444641038,-290.113183,0.0001437,2]
[337120602,1725444641047,-815.13,0.0001437,2]
[337120604,1725444641056,-815.13,0.0001437,2]
[337120606,1725444641066,-164.097026,0.0001437,2]
[337120608,1725444641076,-151.0,0.0001437,2]
[337120609,1725444641085,-151.580138,0.0001437,2]
[337120611,1725444641095,-151.0,0.0001437,2]
[337120613,1725444641104,-293.666233,0.0001437,2]
[337120615,1725444641114,-668.93,0.0001437,2]
[337120617,1725444641123,-668.93,0.0001437,2]
[337120619,1725444641132,-500.0,0.0001437,2]
[337120621,1725444641142,-596.19818509,0.0001437,2]
[337120623,1725444641152,-500.0,0.0001437,2]
[337120625,1725444641161,-500.0,0.0001437,2]
[337120627,1725444641171,-691.48,0.0001437,2]
[337120629,1725444641180,-691.48,0.0001437,2]
[337120631,1725444641189,-500.0,0.0001437,2]
[337120632,1725444641199,-500.0,0.0001437,2]
[337120634,1725444641208,-500.0,0.0001437,2]
[337120636,1725444641218,-500.0,0.0001437,2]
[337120638,1725444641228,-708.66,0.0001437,2]
[337120640,1725444641237,-576.37,0.0001437,2]
[337120642,1725444641247,-708.66,0.0001437,2]
[337120644,1725444641256,-576.37,0.0001437,2]
[337120645,1725444641266,-500.0,0.0001437,2]
[337120646,1725444641275,-500.0,0.0001437,2]
[337120647,1725444641285,-500.0,0.0001437,2]
[337120648,1725444641295,-652.86,0.0001437,2]
[337120649,1725444641304,-6177.46177047,0.00014371,2]
[337120650,1725444641313,-151.0,0.00014371,2]
[337120651,1725444641323,-151.0,0.00014371,2]
[337120652,1725444641333,-151.0,0.00014371,2]
[337120653,1725444641342,-151.0,0.00014371,2]
[337120654,1725444641351,-501.659056,0.00014371,2]
[337120655,1725444641361,-501.659056,0.00014371,2]
[337120656,1725444641370,-151.0,0.00014371,2]
[337120657,1725444641379,-151.0,0.00014371,2]
[337120658,1725444641388,-200.0,0.00014371,2]
[337120659,1725444641398,-151.0,0.00014371,2]
[337120660,1725444641407,-151.0,0.00014371,2]
[337120661,1725444641417,-135904.15895,0.00014371,2]
[337120662,1725444641426,-248.0,0.00014372,2]
[337120663,1725444641435,-264.511,0.00014372,2]
[337120664,1725444641444,-805.0,0.00014372,2]
[337120665,1725444641453,-160.20094759,0.00014373,2]
[337120666,1725444641463,-159.7910904,0.00014373,2]
[337120667,1725444641472,-300.37677113,0.00014373,2]
[337120668,1725444641484,-160.20094445,0.00014373,2]
[337120669,1725444641494,-160.16281225,0.00014373,2]
[337120670,1725444641503,-200.25118058,0.00014373,2]
[337120671,1725444641512,-160.16281237,0.00014373,2]
[337120672,1725444641522,-160.19093229,0.00014373,2]
[337120673,1725444641531,-160.19156934,0.00014373,2]
[337120674,1725444641540,-158.16077721,0.00014373,2]
[337120675,1725444641550,-160.19093227,0.00014373,2]
[337120676,1725444641559,-165.17115232,0.00014373,2]
[337120677,1725444641569,-160.04912175,0.00014373,2]
[337120678,1725444641584,-160.20094446,0.00014373,2]
[337120679,1725444641594,-500.0,0.00014373,2]
[337120680,1725444641603,-158.16077721,0.00014373,2]
[337120681,1725444641613,-160.19354874,0.00014373,2]
[337120682,1725444641623,-160.20094445,0.00014373,2]
[337120683,1725444641632,-500.0,0.00014373,2]
[337120684,1725444641642,-160.16281235,0.00014373,2]
[337120685,1725444641652,-160.16281237,0.00014373,2]
[337120686,1725444641662,-160.20094446,0.00014373,2]
[337120687,1725444641671,-160.20094447,0.00014373,2]
[337120688,1725444641681,-278.426383,0.00014373,2]
[337120689,1725444641690,-166.230843,0.00014373,2]
[337120690,1725444641700,-278.426383,0.00014373,2]
[337120691,1725444641710,-151.0,0.00014373,2]
[337120692,1725444641719,-151.0,0.00014373,2]
[337120693,1725444641729,-151.198393,0.00014373,2]
[337120694,1725444641739,-154.554499,0.00014377,2]
[337120695,1725444641748,-151.0,0.00014377,2]
[337120696,1725444641758,-151.0,0.00014377,2]
[337120697,1725444641767,-151.0,0.00014378,2]
[337120698,1725444641776,-151.0,0.00014378,2]
[337120699,1725444641786,-19163.01370888,0.00014378,2]
[337120700,1725444641796,-500.0,0.00014379,2]
[337120701,1725444641807,-524.08004349,0.00014379,2]
[337120702,1725444641826,-652.86,0.00014379,2]
[337120703,1725444641835,-652.86,0.00014379,2]
[337120704,1725444641845,-500.0,0.0001438,2]
[337120705,1725444641854,-448.88647011,0.0001438,2]
[337120706,1725444641865,-532.25,0.0001438,2]
[337120707,1725444641874,-532.25,0.0001438,2]
[337120708,1725444641884,-532.25,0.0001438,2]
[337120709,1725444641896,-532.25,0.0001438,2]
[337120710,1725444641905,-532.25,0.0001438,2]
[337120711,1725444641915,-2000.0,0.0001438,2]
[337120712,1725444641924,-200.0,0.0001438,2]
[337120713,1725444641934,-736.07,0.0001438,2]
[337120714,1725444641943,-736.07,0.0001438,2]
[337120715,1725444641953,-736.07,0.0001438,2]
[337120716,1725444641963,-736.07,0.0001438,2]
[337120717,1725444641972,-736.07,0.0001438,2]
[337120718,1725444641982,-500.0,0.0001438,2]
[337120719,1725444641992,-195.107925,0.0001438,2]
[337120720,1725444642001,-2000.0,0.0001438,2]
[337120721,1725444642011,-200.0,0.0001438,2]
[337120722,1725444642020,-500.0,0.0001438,2]
[337120723,1725444642030,-500.0,0.0001438,2]
[337120724,1725444642039,-500.0,0.0001438,2]
[337120725,1725444642049,-500.0,0.0001438,2]
[337120726,1725444642058,-500.0,0.0001438,2]
[337120727,1725444642068,-500.0,0.0001438,2]
[337120728,1725444642077,-500.0,0.0001438,2]
[337120729,1725444642087,-500.0,0.0001438,2]
[337120730,1725444642096,-500.0,0.0001438,2]
[337120731,1725444642105,-500.0,0.0001438,2]